[Event "Titled Tuesday Blitz June 13 Late 2023"]
[White "Spata, German"]
[Black "Andreikin, Dmitry"]
[WhiteFideId "113026"]
[BlackFideId "4158814"]
[WhiteElo "2260"]
[BlackElo "2736"]
[Result "0-1"]
[Round "2"]
[TimeControl "180+2"]
[Date "2023.06.13"]
[WhiteClock "0:00:10"]
[BlackClock "0:01:39"]
[Board "8"]

1. Nf3 {[%clk 0:02:52]}  g6 {[%clk 0:02:59]} 2. e3 {[%clk 0:02:50]}  Bg7 {[%clk 0:02:57]} 3. d4 {[%clk 0:02:50]}  c5 {[%clk 0:02:56]} 4. Be2 {[%clk 0:02:50]}  Nf6 {[%clk 0:02:56]} 5. O-O {[%clk 0:02:50]}  O-O {[%clk 0:02:56]} 6. b3 {[%clk 0:02:51]}  cxd4 {[%clk 0:02:56]} 7. Nxd4 {[%clk 0:02:51]}  d5 {[%clk 0:02:51]} 8. Bb2 {[%clk 0:02:51]}  Re8 {[%clk 0:02:49]} 9. c4 {[%clk 0:02:50]}  e5 {[%clk 0:02:49]} 10. Nf3 {[%clk 0:02:50]}  Nc6 {[%clk 0:02:48]} 11. cxd5 {[%clk 0:02:46]}  Nxd5 {[%clk 0:02:49]} 12. Bc4 {[%clk 0:02:32]}  Be6 {[%clk 0:02:43]} 13. Bxd5 {[%clk 0:02:17]}  Bxd5 {[%clk 0:02:32]} 14. Nc3 {[%clk 0:02:17]}  Be6 {[%clk 0:02:26]} 15. Qxd8 {[%clk 0:02:17]}  Rexd8 {[%clk 0:02:25]} 16. Rfd1 {[%clk 0:02:17]}  e4 {[%clk 0:02:20]} 17. Ng5 {[%clk 0:02:17]}  Bf5 {[%clk 0:02:19]} 18. Rxd8+ {[%clk 0:02:10]}  Rxd8 {[%clk 0:02:18]} 19. Rd1 {[%clk 0:02:11]}  h6 {[%clk 0:02:01]} 20. Rxd8+ {[%clk 0:01:55]}  Nxd8 {[%clk 0:02:01]} 21. Nh3 {[%clk 0:01:55]}  Bxh3 {[%clk 0:01:59]} 22. gxh3 {[%clk 0:01:55]}  Ne6 {[%clk 0:01:59]} 23. Kf1 {[%clk 0:01:44]}  f5 {[%clk 0:01:57]} 24. Ke2 {[%clk 0:01:40]}  Ng5 {[%clk 0:01:57]} 25. h4 {[%clk 0:01:33]}  Nf3 {[%clk 0:01:55]} 26. h5 {[%clk 0:01:34]}  Bxc3 {[%clk 0:01:47]} 27. Bxc3 {[%clk 0:01:31]}  gxh5 {[%clk 0:01:48]} 28. Bb4 {[%clk 0:01:05]}  Nxh2 {[%clk 0:01:41]} 29. Bd6 {[%clk 0:00:34]}  Nf3 {[%clk 0:01:40]} 30. Kd1 {[%clk 0:00:10]}  h4 {[%clk 0:01:39]} 0-1


[Site "https://www.chess.com"]

[Event "Titled Tuesday Blitz June 13 Late 2023"]
[White "Bluebaum, Matthias"]
[Black "ArtemDyachuk"]
[WhiteFideId "24651516"]
[WhiteElo "2639"]
[BlackElo "2629"]
[Result "1-0"]
[Round "2"]
[TimeControl "180+2"]
[Date "2023.06.13"]
[WhiteClock "0:01:32"]
[BlackClock "0:00:20"]
[Board "9"]

1. d4 {[%clk 0:03:00]}  Nf6 {[%clk 0:02:59]} 2. c4 {[%clk 0:02:57]}  e6 {[%clk 0:02:59]} 3. Nc3 {[%clk 0:02:57]}  c5 {[%clk 0:02:58]} 4. d5 {[%clk 0:02:57]}  exd5 {[%clk 0:02:58]} 5. cxd5 {[%clk 0:02:58]}  d6 {[%clk 0:02:58]} 6. Nf3 {[%clk 0:02:58]}  g6 {[%clk 0:02:57]} 7. Bg5 {[%clk 0:02:59]}  h6 {[%clk 0:02:53]} 8. Bh4 {[%clk 0:02:59]}  g5 {[%clk 0:02:50]} 9. Bg3 {[%clk 0:02:58]}  Nh5 {[%clk 0:02:50]} 10. Nd2 {[%clk 0:02:57]}  Nxg3 {[%clk 0:02:45]} 11. hxg3 {[%clk 0:02:58]}  Bg7 {[%clk 0:02:45]} 12. Nc4 {[%clk 0:02:57]}  O-O {[%clk 0:02:41]} 13. e4 {[%clk 0:02:55]}  Re8 {[%clk 0:02:39]} 14. Be2 {[%clk 0:02:54]}  a6 {[%clk 0:02:34]} 15. a4 {[%clk 0:02:53]}  Bxc3+ {[%clk 0:01:51]} 16. bxc3 {[%clk 0:02:51]}  Qf6 {[%clk 0:01:52]} 17. Qd2 {[%clk 0:02:44]}  Nd7 {[%clk 0:01:50]} 18. Ne3 {[%clk 0:02:43]}  Ne5 {[%clk 0:01:44]} 19. O-O {[%clk 0:02:39]}  Qg6 {[%clk 0:01:41]} 20. f4 {[%clk 0:02:37]}  Qxe4 {[%clk 0:01:28]} 21. fxe5 {[%clk 0:02:12]}  Qxe5 {[%clk 0:01:10]} 22. Nc4 {[%clk 0:01:51]}  Qxe2 {[%clk 0:01:09]} 23. Rae1 {[%clk 0:01:50]}  Qxc4 {[%clk 0:00:59]} 24. Rxe8+ {[%clk 0:01:50]}  Kg7 {[%clk 0:00:59]} 25. Qf2 {[%clk 0:01:48]}  f5 {[%clk 0:00:50]} 26. Qe1 {[%clk 0:01:41]}  Qxd5 {[%clk 0:00:42]} 27. Qe7+ {[%clk 0:01:39]}  Kg6 {[%clk 0:00:42]} 28. Rd8 {[%clk 0:01:33]}  Qc6 {[%clk 0:00:20]} 29. Rxd6+ {[%clk 0:01:32]} 1-0


[Site "https://www.chess.com"]

[Event "Titled Tuesday Blitz June 13 Late 2023"]
[White "Adewumi, Tanitoluwa"]
[Black "Martinez Alcantara, Jose Eduardo"]
[WhiteFideId "30966396"]
[BlackFideId "3805662"]
[WhiteElo "2628"]
[BlackElo "2711"]
[Result "0-1"]
[Round "2"]
[TimeControl "180+2"]
[Date "2023.06.13"]
[WhiteClock "0:00:00"]
[BlackClock "0:00:10"]
[Board "10"]

1. e4 {[%clk 0:02:53]}  c5 {[%clk 0:02:59]} 2. Nf3 {[%clk 0:02:52]}  d6 {[%clk 0:03:00]} 3. Bb5+ {[%clk 0:02:52]}  Bd7 {[%clk 0:02:59]} 4. Bxd7+ {[%clk 0:02:51]}  Nxd7 {[%clk 0:03:00]} 5. O-O {[%clk 0:02:51]}  Ngf6 {[%clk 0:03:00]} 6. Qe2 {[%clk 0:02:52]}  e6 {[%clk 0:03:01]} 7. c3 {[%clk 0:02:52]}  Be7 {[%clk 0:03:00]} 8. d4 {[%clk 0:02:53]}  O-O {[%clk 0:03:01]} 9. e5 {[%clk 0:02:49]}  Ne8 {[%clk 0:03:01]} 10. exd6 {[%clk 0:02:49]}  Nxd6 {[%clk 0:03:00]} 11. dxc5 {[%clk 0:02:48]}  Nxc5 {[%clk 0:03:01]} 12. Rd1 {[%clk 0:02:45]}  Qc8 {[%clk 0:02:52]} 13. Bf4 {[%clk 0:02:44]}  Rd8 {[%clk 0:02:52]} 14. Na3 {[%clk 0:02:42]}  a6 {[%clk 0:02:47]} 15. Bxd6 {[%clk 0:02:30]}  Bxd6 {[%clk 0:02:21]} 16. Nc4 {[%clk 0:02:30]}  Bc7 {[%clk 0:02:22]} 17. Qe3 {[%clk 0:02:29]}  Nd7 {[%clk 0:01:29]} 18. Nd6 {[%clk 0:02:26]}  Bxd6 {[%clk 0:01:29]} 19. Rxd6 {[%clk 0:02:27]}  Nf6 {[%clk 0:01:30]} 20. Rad1 {[%clk 0:02:26]}  Rxd6 {[%clk 0:01:30]} 21. Rxd6 {[%clk 0:02:27]}  h6 {[%clk 0:01:26]} 22. h3 {[%clk 0:02:04]}  Qc4 {[%clk 0:01:13]} 23. b3 {[%clk 0:01:59]}  Qe4 {[%clk 0:01:12]} 24. Qxe4 {[%clk 0:01:27]}  Nxe4 {[%clk 0:01:13]} 25. Rd7 {[%clk 0:01:28]}  b5 {[%clk 0:00:51]} 26. c4 {[%clk 0:01:24]}  bxc4 {[%clk 0:00:50]} 27. bxc4 {[%clk 0:01:24]}  Rc8 {[%clk 0:00:48]} 28. Ra7 {[%clk 0:01:17]}  Rxc4 {[%clk 0:00:43]} 29. Rxa6 {[%clk 0:01:10]}  Rc1+ {[%clk 0:00:43]} 30. Kh2 {[%clk 0:01:11]}  Nxf2 {[%clk 0:00:43]} 31. Ne5 {[%clk 0:01:09]}  Rh1+ {[%clk 0:00:43]} 32. Kg3 {[%clk 0:01:07]}  Ne4+ {[%clk 0:00:44]} 33. Kf3 {[%clk 0:01:08]}  Nc5 {[%clk 0:00:39]} 34. Ra8+ {[%clk 0:01:07]}  Kh7 {[%clk 0:00:40]} 35. a4 {[%clk 0:00:58]}  f6 {[%clk 0:00:37]} 36. Nf7 {[%clk 0:00:51]}  Rf1+ {[%clk 0:00:33]} 37. Ke2 {[%clk 0:00:49]}  Ra1 {[%clk 0:00:33]} 38. a5 {[%clk 0:00:46]}  Kg6 {[%clk 0:00:28]} 39. Nd6 {[%clk 0:00:44]}  h5 {[%clk 0:00:28]} 40. Ke3 {[%clk 0:00:34]}  h4 {[%clk 0:00:28]} 41. Ra7 {[%clk 0:00:24]}  Ra3+ {[%clk 0:00:26]} 42. Ke2 {[%clk 0:00:23]}  Ra2+ {[%clk 0:00:26]} 43. Kf3 {[%clk 0:00:21]}  e5 {[%clk 0:00:24]} 44. Ne8 {[%clk 0:00:20]}  Ne6 {[%clk 0:00:24]} 45. Re7 {[%clk 0:00:19]}  Ng5+ {[%clk 0:00:24]} 46. Ke3 {[%clk 0:00:17]}  Rxa5 {[%clk 0:00:20]} 47. Rxg7+ {[%clk 0:00:16]}  Kf5 {[%clk 0:00:20]} 48. Nd6+ {[%clk 0:00:13]}  Ke6 {[%clk 0:00:20]} 49. Nc4 {[%clk 0:00:12]}  Ra4 {[%clk 0:00:20]} 50. Nd2 {[%clk 0:00:11]}  Ra3+ {[%clk 0:00:20]} 51. Ke2 {[%clk 0:00:11]}  Ra2 {[%clk 0:00:21]} 52. Ke3 {[%clk 0:00:11]}  Ra3+ {[%clk 0:00:21]} 53. Ke2 {[%clk 0:00:12]}  Kf5 {[%clk 0:00:22]} 54. Kf2 {[%clk 0:00:10]}  Ra2 {[%clk 0:00:21]} 55. Ke3 {[%clk 0:00:10]}  Ra3+ {[%clk 0:00:21]} 56. Ke2 {[%clk 0:00:10]}  e4 {[%clk 0:00:20]} 57. Nc4 {[%clk 0:00:09]}  Ra2+ {[%clk 0:00:19]} 58. Ke3 {[%clk 0:00:10]}  Ke6 {[%clk 0:00:13]} 59. Nd2 {[%clk 0:00:08]}  Ra3+ {[%clk 0:00:12]} 60. Ke2 {[%clk 0:00:04]}  Rc3 {[%clk 0:00:12]} 61. Nf1 {[%clk 0:00:01]}  Rc2+ {[%clk 0:00:11]} 62. Nd2 {[%clk 0:00:02]}  Ke5 {[%clk 0:00:11]} 63. Re7+ {[%clk 0:00:01]}  Ne6 {[%clk 0:00:10]} 64. Ke3 {[%clk 0:00:01]}  f5 {[%clk 0:00:10]} 65. Ke2 {[%clk 0:00:01]}  Kd6 {[%clk 0:00:10]} 66. Rf7 {[%clk 0:00:01]}  Nf4+ {[%clk 0:00:11]} 67. Ke3 {[%clk 0:00:02]}  Nd5+ {[%clk 0:00:12]} 68. Ke2 {[%clk 0:00:02]}  Ke6 {[%clk 0:00:12]} 69. Rf8 {[%clk 0:00:02]}  e3 {[%clk 0:00:13]} 70. Re8+ {[%clk 0:00:01]}  Kf7 {[%clk 0:00:12]} 71. Rxe3 {[%clk 0:00:01]}  Nxe3 {[%clk 0:00:13]} 72. Kxe3 {[%clk 0:00:02]}  Kf6 {[%clk 0:00:13]} 73. Nf3 {[%clk 0:00:02]}  Rxg2 {[%clk 0:00:13]} 74. Nxh4 {[%clk 0:00:01]}  Ra2 {[%clk 0:00:14]} 75. Nf3 {[%clk 0:00:02]}  Ra3+ {[%clk 0:00:15]} 76. Kf4 {[%clk 0:00:02]}  Ra4+ {[%clk 0:00:16]} 77. Kg3 {[%clk 0:00:02]}  Kg6 {[%clk 0:00:16]} 78. Nh4+ {[%clk 0:00:02]}  Kg5 {[%clk 0:00:16]} 79. Nf3+ {[%clk 0:00:02]}  Kh5 {[%clk 0:00:16]} 80. Ne5 {[%clk 0:00:02]}  f4+ {[%clk 0:00:14]} 81. Kf3 {[%clk 0:00:02]}  Kg5 {[%clk 0:00:14]} 82. Nd3 {[%clk 0:00:02]}  Kf5 {[%clk 0:00:13]} 83. Nf2 {[%clk 0:00:02]}  Ra3+ {[%clk 0:00:14]} 84. Kg2 {[%clk 0:00:02]}  Rg3+ {[%clk 0:00:14]} 85. Kh2 {[%clk 0:00:03]}  Rg8 {[%clk 0:00:15]} 86. h4 {[%clk 0:00:03]}  f3 {[%clk 0:00:15]} 87. Kh3 {[%clk 0:00:03]}  Kf4 {[%clk 0:00:15]} 88. h5 {[%clk 0:00:02]}  Rg2 {[%clk 0:00:12]} 89. Nd3+ {[%clk 0:00:02]}  Ke4 {[%clk 0:00:11]} 90. Nc5+ {[%clk 0:00:02]}  Kf5 {[%clk 0:00:12]} 91. Nd3 {[%clk 0:00:02]}  Rd2 {[%clk 0:00:11]} 92. Ne1 {[%clk 0:00:02]}  f2 {[%clk 0:00:11]} 93. Ng2 {[%clk 0:00:00]}  f1=Q {[%clk 0:00:10]} 0-1


[Site "https://www.chess.com"]

[Event "Titled Tuesday Blitz June 13 Late 2023"]
[White "Deac, Bogdan-Daniel"]
[Black "Bjelobrk, Igor"]
[WhiteFideId "1226380"]
[BlackFideId "4300726"]
[WhiteElo "2644"]
[BlackElo "2319"]
[Result "1/2-1/2"]
[Round "2"]
[TimeControl "180+2"]
[Date "2023.06.13"]
[WhiteClock "0:00:06"]
[BlackClock "0:00:07"]
[Board "12"]

1. b3 {[%clk 0:03:00]}  d5 {[%clk 0:02:50]} 2. Bb2 {[%clk 0:03:01]}  Nf6 {[%clk 0:02:49]} 3. e3 {[%clk 0:03:01]}  Bg4 {[%clk 0:02:48]} 4. Nf3 {[%clk 0:02:52]}  Nbd7 {[%clk 0:02:47]} 5. h3 {[%clk 0:02:51]}  Bh5 {[%clk 0:02:47]} 6. g4 {[%clk 0:02:50]}  Bg6 {[%clk 0:02:47]} 7. Nh4 {[%clk 0:02:51]}  e5 {[%clk 0:02:41]} 8. Nxg6 {[%clk 0:02:50]}  hxg6 {[%clk 0:02:40]} 9. Bg2 {[%clk 0:02:51]}  c6 {[%clk 0:02:40]} 10. d3 {[%clk 0:02:50]}  Be7 {[%clk 0:02:35]} 11. Nd2 {[%clk 0:02:48]}  Qc7 {[%clk 0:02:35]} 12. Qe2 {[%clk 0:02:47]}  O-O-O {[%clk 0:02:34]} 13. a3 {[%clk 0:02:47]}  Nf8 {[%clk 0:02:30]} 14. c4 {[%clk 0:02:33]}  d4 {[%clk 0:02:27]} 15. b4 {[%clk 0:02:18]}  Ne6 {[%clk 0:02:26]} 16. c5 {[%clk 0:02:17]}  Nd5 {[%clk 0:02:20]} 17. Bxd5 {[%clk 0:01:36]}  Rxd5 {[%clk 0:02:17]} 18. O-O-O {[%clk 0:01:32]}  b6 {[%clk 0:02:09]} 19. cxb6 {[%clk 0:01:31]}  axb6 {[%clk 0:02:08]} 20. Kb1 {[%clk 0:01:31]}  Kb7 {[%clk 0:02:05]} 21. Rc1 {[%clk 0:01:26]}  Qd7 {[%clk 0:02:05]} 22. e4 {[%clk 0:01:22]}  Rb5 {[%clk 0:02:05]} 23. Nc4 {[%clk 0:01:14]}  Nf4 {[%clk 0:02:02]} 24. Qc2 {[%clk 0:01:07]}  Ra8 {[%clk 0:01:56]} 25. Qb3 {[%clk 0:00:53]}  f6 {[%clk 0:01:52]} 26. Rc2 {[%clk 0:00:53]}  c5 {[%clk 0:01:52]} 27. Bc1 {[%clk 0:00:52]}  Ne6 {[%clk 0:01:34]} 28. Rb2 {[%clk 0:00:22]}  cxb4 {[%clk 0:01:34]} 29. axb4 {[%clk 0:00:22]}  Nc5 {[%clk 0:01:25]} 30. Qc2 {[%clk 0:00:20]}  Na4 {[%clk 0:01:24]} 31. Bd2 {[%clk 0:00:19]}  Nxb2 {[%clk 0:01:21]} 32. Qxb2 {[%clk 0:00:20]}  Ra4 {[%clk 0:01:18]} 33. Kc2 {[%clk 0:00:20]}  Qc8 {[%clk 0:00:39]} 34. Rb1 {[%clk 0:00:17]}  Qa8 {[%clk 0:00:39]} 35. Qb3 {[%clk 0:00:13]}  Ra2+ {[%clk 0:00:35]} 36. Kd1 {[%clk 0:00:13]}  Qa4 {[%clk 0:00:35]} 37. h4 {[%clk 0:00:10]}  Qxb3+ {[%clk 0:00:31]} 38. Rxb3 {[%clk 0:00:11]}  Ra4 {[%clk 0:00:30]} 39. Na3 {[%clk 0:00:10]}  Rbxb4 {[%clk 0:00:21]} 40. Bxb4 {[%clk 0:00:10]}  Rxb4 {[%clk 0:00:19]} 41. Rxb4 {[%clk 0:00:08]}  Bxb4 {[%clk 0:00:20]} 42. Nc2 {[%clk 0:00:08]}  Bc5 {[%clk 0:00:17]} 43. h5 {[%clk 0:00:07]}  gxh5 {[%clk 0:00:16]} 44. gxh5 {[%clk 0:00:08]}  b5 {[%clk 0:00:16]} 45. Na1 {[%clk 0:00:08]}  Kc6 {[%clk 0:00:16]} 46. Nb3 {[%clk 0:00:09]}  Bb6 {[%clk 0:00:16]} 47. Kc2 {[%clk 0:00:08]}  Kd6 {[%clk 0:00:16]} 48. Nd2 {[%clk 0:00:07]}  Kc5 {[%clk 0:00:16]} 49. Kb3 {[%clk 0:00:06]}  Ba5 {[%clk 0:00:14]} 50. Nf3 {[%clk 0:00:07]}  Kd6 {[%clk 0:00:14]} 51. Nh4 {[%clk 0:00:07]}  Ke6 {[%clk 0:00:13]} 52. Nf5 {[%clk 0:00:07]}  Kf7 {[%clk 0:00:09]} 53. Nd6+ {[%clk 0:00:07]}  Kg8 {[%clk 0:00:09]} 54. Nxb5 {[%clk 0:00:07]}  Kh7 {[%clk 0:00:10]} 55. Nd6 {[%clk 0:00:07]}  Kh6 {[%clk 0:00:08]} 56. Nf5+ {[%clk 0:00:07]}  Kxh5 {[%clk 0:00:08]} 57. Nxg7+ {[%clk 0:00:08]}  Kg4 {[%clk 0:00:08]} 58. Kc4 {[%clk 0:00:07]}  Kf3 {[%clk 0:00:07]} 59. Ne8 {[%clk 0:00:07]}  Bd8 {[%clk 0:00:08]} 60. Nd6 {[%clk 0:00:07]}  Kxf2 {[%clk 0:00:07]} 61. Nf5 {[%clk 0:00:07]}  Ke2 {[%clk 0:00:06]} 62. Ng7 {[%clk 0:00:07]}  Be7 {[%clk 0:00:06]} 63. Nf5 {[%clk 0:00:06]}  Bf8 {[%clk 0:00:06]} 64. Ng3+ {[%clk 0:00:06]}  Kf3 {[%clk 0:00:06]} 65. Nh5 {[%clk 0:00:05]}  Be7 {[%clk 0:00:06]} 66. Ng7 {[%clk 0:00:06]}  Kg4 {[%clk 0:00:07]} 67. Kd5 {[%clk 0:00:05]}  Kf4 {[%clk 0:00:06]} 68. Nf5 {[%clk 0:00:05]}  Bd8 {[%clk 0:00:05]} 69. Kc4 {[%clk 0:00:04]}  Kf3 {[%clk 0:00:05]} 70. Nd6 {[%clk 0:00:04]}  Ke2 {[%clk 0:00:05]} 71. Nf7 {[%clk 0:00:04]}  Be7 {[%clk 0:00:06]} 72. Nh6 {[%clk 0:00:05]}  Kd2 {[%clk 0:00:06]} 73. Nf5 {[%clk 0:00:05]}  Bd8 {[%clk 0:00:06]} 74. Ng3 {[%clk 0:00:05]}  Kc2 {[%clk 0:00:07]} 75. Nf5 {[%clk 0:00:05]}  Kd2 {[%clk 0:00:07]} 76. Ng7 {[%clk 0:00:05]}  Kc2 {[%clk 0:00:07]} 77. Ne6 {[%clk 0:00:06]}  Be7 {[%clk 0:00:07]} 78. Ng7 {[%clk 0:00:06]}  Bd8 {[%clk 0:00:08]} 79. Nf5 {[%clk 0:00:06]}  Kd2 {[%clk 0:00:07]} 1/2-1/2


[Site "https://www.chess.com"]

[Event "Titled Tuesday Blitz June 13 Late 2023"]
[White "Fiorito, Joaquin"]
[Black "Korobov, Anton"]
[WhiteFideId "180173"]
[BlackFideId "14105730"]
[WhiteElo "2199"]
[BlackElo "2638"]
[Result "0-1"]
[Round "2"]
[TimeControl "180+2"]
[Date "2023.06.13"]
[WhiteClock "0:00:00"]
[BlackClock "0:00:17"]
[Board "13"]

1. d4 {[%clk 0:03:00]}  Nf6 {[%clk 0:02:59]} 2. c4 {[%clk 0:03:01]}  g6 {[%clk 0:02:59]} 3. Nc3 {[%clk 0:03:02]}  Bg7 {[%clk 0:03:00]} 4. e4 {[%clk 0:03:02]}  d6 {[%clk 0:03:00]} 5. h3 {[%clk 0:03:02]}  Nbd7 {[%clk 0:03:00]} 6. Be3 {[%clk 0:02:55]}  e5 {[%clk 0:02:58]} 7. d5 {[%clk 0:02:55]}  Nc5 {[%clk 0:02:58]} 8. Qc2 {[%clk 0:02:51]}  a5 {[%clk 0:02:58]} 9. Nge2 {[%clk 0:02:49]}  O-O {[%clk 0:02:53]} 10. g4 {[%clk 0:02:49]}  c6 {[%clk 0:02:54]} 11. Ng3 {[%clk 0:02:35]}  cxd5 {[%clk 0:02:52]} 12. cxd5 {[%clk 0:02:34]}  Bd7 {[%clk 0:02:52]} 13. Qd2 {[%clk 0:02:32]}  Rc8 {[%clk 0:02:51]} 14. f3 {[%clk 0:02:30]}  Ne8 {[%clk 0:02:45]} 15. h4 {[%clk 0:02:29]}  f5 {[%clk 0:02:38]} 16. gxf5 {[%clk 0:02:14]}  gxf5 {[%clk 0:02:39]} 17. exf5 {[%clk 0:02:07]}  Bxf5 {[%clk 0:02:34]} 18. Rg1 {[%clk 0:01:55]}  Qxh4 {[%clk 0:02:28]} 19. Bg5 {[%clk 0:01:45]}  Qd4 {[%clk 0:02:28]} 20. Qxd4 {[%clk 0:01:36]}  exd4 {[%clk 0:02:28]} 21. Nxf5 {[%clk 0:01:27]}  Rxf5 {[%clk 0:02:27]} 22. Bh3 {[%clk 0:01:21]}  Re5+ {[%clk 0:02:20]} 23. Kd1 {[%clk 0:01:15]}  dxc3 {[%clk 0:02:18]} 24. Bxc8 {[%clk 0:01:15]}  cxb2 {[%clk 0:02:18]} 25. Rb1 {[%clk 0:01:15]}  Rxd5+ {[%clk 0:02:15]} 26. Kc2 {[%clk 0:01:15]}  Kf8 {[%clk 0:02:10]} 27. Be3 {[%clk 0:01:11]}  b5 {[%clk 0:02:05]} 28. Rh1 {[%clk 0:01:04]}  Re5 {[%clk 0:01:57]} 29. Kd2 {[%clk 0:00:55]}  Rd5+ {[%clk 0:01:44]} 30. Kc2 {[%clk 0:00:54]}  Nd3 {[%clk 0:01:44]} 31. a3 {[%clk 0:00:48]}  Ne5 {[%clk 0:01:41]} 32. Bb7 {[%clk 0:00:39]}  Rd3 {[%clk 0:01:41]} 33. Bh6 {[%clk 0:00:36]}  Rxa3 {[%clk 0:01:39]} 34. Bxg7+ {[%clk 0:00:36]}  Kxg7 {[%clk 0:01:40]} 35. Rxb2 {[%clk 0:00:37]}  b4 {[%clk 0:01:38]} 36. Rbb1 {[%clk 0:00:35]}  Nf6 {[%clk 0:01:36]} 37. Rbg1+ {[%clk 0:00:35]}  Kf7 {[%clk 0:01:37]} 38. Ba6 {[%clk 0:00:32]}  Rxf3 {[%clk 0:01:34]} 39. Ra1 {[%clk 0:00:30]}  Ne4 {[%clk 0:01:28]} 40. Rxa5 {[%clk 0:00:28]}  Nc5 {[%clk 0:01:24]} 41. Rxh7+ {[%clk 0:00:24]}  Kf6 {[%clk 0:01:25]} 42. Rh4 {[%clk 0:00:19]}  b3+ {[%clk 0:01:22]} 43. Kd2 {[%clk 0:00:16]}  b2 {[%clk 0:01:19]} 44. Kc2 {[%clk 0:00:16]}  Rf2+ {[%clk 0:01:09]} 45. Kb1 {[%clk 0:00:16]}  Nf3 {[%clk 0:01:10]} 46. Rf4+ {[%clk 0:00:16]}  Ke5 {[%clk 0:01:10]} 47. Rxf3 {[%clk 0:00:15]}  Rxf3 {[%clk 0:01:11]} 48. Kxb2 {[%clk 0:00:16]}  Kd4 {[%clk 0:01:11]} 49. Bc8 {[%clk 0:00:12]}  d5 {[%clk 0:01:08]} 50. Ra3 {[%clk 0:00:10]}  Rf2+ {[%clk 0:01:08]} 51. Kc1 {[%clk 0:00:10]}  Ne4 {[%clk 0:01:08]} 52. Ba6 {[%clk 0:00:09]}  Nc3 {[%clk 0:01:08]} 53. Rb3 {[%clk 0:00:06]}  Ra2 {[%clk 0:01:06]} 54. Bb5 {[%clk 0:00:03]}  Ra5 {[%clk 0:00:59]} 55. Be8 {[%clk 0:00:03]}  Kc4 {[%clk 0:00:58]} 56. Rb8 {[%clk 0:00:02]}  Ra2 {[%clk 0:00:53]} 57. Bd7 {[%clk 0:00:02]}  Rh2 {[%clk 0:00:51]} 58. Bf5 {[%clk 0:00:02]}  Rf2 {[%clk 0:00:47]} 59. Bg6 {[%clk 0:00:02]}  Ne2+ {[%clk 0:00:42]} 60. Kd1 {[%clk 0:00:02]}  Nf4 {[%clk 0:00:42]} 61. Bh7 {[%clk 0:00:02]}  d4 {[%clk 0:00:40]} 62. Rc8+ {[%clk 0:00:02]}  Kd5 {[%clk 0:00:40]} 63. Rd8+ {[%clk 0:00:02]}  Ke5 {[%clk 0:00:39]} 64. Re8+ {[%clk 0:00:03]}  Kf6 {[%clk 0:00:40]} 65. Rd8 {[%clk 0:00:03]}  Ne6 {[%clk 0:00:27]} 66. Ra8 {[%clk 0:00:04]}  Ke5 {[%clk 0:00:27]} 67. Ra5+ {[%clk 0:00:03]}  Kd6 {[%clk 0:00:27]} 68. Bd3 {[%clk 0:00:02]}  Nf4 {[%clk 0:00:27]} 69. Bc4 {[%clk 0:00:03]}  d3 {[%clk 0:00:27]} 70. Ra3 {[%clk 0:00:01]}  d2 {[%clk 0:00:17]} 71. Bd3 {[%clk 0:00:00]}  Ke5 {[%clk 0:00:17]} 0-1


[Site "https://www.chess.com"]

[Event "Titled Tuesday Blitz June 13 Late 2023"]
[White "Silva, Caio Henrique Angelico"]
[Black "Sviridov, Valery"]
[WhiteFideId "22777210"]
[BlackFideId "4120680"]
[WhiteElo "2096"]
[BlackElo "2457"]
[Result "0-1"]
[Round "2"]
[TimeControl "180+2"]
[Date "2023.06.13"]
[WhiteClock "0:00:00"]
[BlackClock "0:01:20"]
[Board "15"]

1. d4 {[%clk 0:03:00]}  g6 {[%clk 0:02:59]} 2. Nf3 {[%clk 0:03:00]}  Bg7 {[%clk 0:03:00]} 3. g3 {[%clk 0:02:59]}  d6 {[%clk 0:03:00]} 4. Bg2 {[%clk 0:02:59]}  Nf6 {[%clk 0:03:01]} 5. O-O {[%clk 0:02:58]}  O-O {[%clk 0:03:01]} 6. c4 {[%clk 0:02:58]}  Nbd7 {[%clk 0:03:02]} 7. Nc3 {[%clk 0:02:57]}  e5 {[%clk 0:03:02]} 8. e4 {[%clk 0:02:57]}  exd4 {[%clk 0:03:02]} 9. Nxd4 {[%clk 0:02:57]}  Re8 {[%clk 0:03:02]} 10. Re1 {[%clk 0:02:57]}  Nc5 {[%clk 0:03:03]} 11. h3 {[%clk 0:02:57]}  c6 {[%clk 0:03:03]} 12. Bf4 {[%clk 0:02:55]}  Nh5 {[%clk 0:03:00]} 13. Be3 {[%clk 0:02:50]}  a5 {[%clk 0:03:00]} 14. Qd2 {[%clk 0:02:44]}  a4 {[%clk 0:03:00]} 15. Rad1 {[%clk 0:02:38]}  Qa5 {[%clk 0:02:58]} 16. Rb1 {[%clk 0:02:15]}  Qb4 {[%clk 0:02:57]} 17. a3 {[%clk 0:01:49]}  Qa5 {[%clk 0:02:56]} 18. Rbd1 {[%clk 0:01:36]}  Qa6 {[%clk 0:02:43]} 19. Qc2 {[%clk 0:01:02]}  Nf6 {[%clk 0:02:34]} 20. Bf1 {[%clk 0:00:57]}  Nfd7 {[%clk 0:02:30]} 21. f4 {[%clk 0:00:54]}  Qa5 {[%clk 0:02:28]} 22. Bf2 {[%clk 0:00:53]}  Nf6 {[%clk 0:02:24]} 23. Bg2 {[%clk 0:00:52]}  Qa6 {[%clk 0:02:23]} 24. Qe2 {[%clk 0:00:51]}  Ne6 {[%clk 0:02:15]} 25. Nc2 {[%clk 0:00:46]}  Bf8 {[%clk 0:02:02]} 26. c5 {[%clk 0:00:33]}  Qxe2 {[%clk 0:02:01]} 27. Rxe2 {[%clk 0:00:34]}  Nxc5 {[%clk 0:01:56]} 28. Bxc5 {[%clk 0:00:34]}  dxc5 {[%clk 0:01:57]} 29. e5 {[%clk 0:00:35]}  Nd7 {[%clk 0:01:56]} 30. Red2 {[%clk 0:00:35]}  Nb6 {[%clk 0:01:55]} 31. Ne3 {[%clk 0:00:35]}  f5 {[%clk 0:01:52]} 32. Bf1 {[%clk 0:00:27]}  Be6 {[%clk 0:01:52]} 33. g4 {[%clk 0:00:22]}  c4 {[%clk 0:01:49]} 34. gxf5 {[%clk 0:00:19]}  gxf5 {[%clk 0:01:50]} 35. Kf2 {[%clk 0:00:18]}  Bc5 {[%clk 0:01:49]} 36. Be2 {[%clk 0:00:18]}  Kh8 {[%clk 0:01:40]} 37. h4 {[%clk 0:00:13]}  Rg8 {[%clk 0:01:37]} 38. h5 {[%clk 0:00:11]}  h6 {[%clk 0:01:33]} 39. Bf3 {[%clk 0:00:12]}  Kg7 {[%clk 0:01:33]} 40. Ke2 {[%clk 0:00:09]}  Kf7 {[%clk 0:01:33]} 41. Rc2 {[%clk 0:00:07]}  Ke7 {[%clk 0:01:30]} 42. Rcc1 {[%clk 0:00:08]}  Rad8 {[%clk 0:01:27]} 43. Rg1 {[%clk 0:00:08]}  Rd3 {[%clk 0:01:21]} 44. Rxg8 {[%clk 0:00:07]}  Rxe3+ {[%clk 0:01:22]} 45. Kd2 {[%clk 0:00:07]}  Bxg8 {[%clk 0:01:22]} 46. Be2 {[%clk 0:00:05]}  Rh3 {[%clk 0:01:21]} 47. Rf1 {[%clk 0:00:02]}  Be6 {[%clk 0:01:20]} 48. Ne4 {[%clk 0:00:01]}  fxe4 {[%clk 0:01:20]} 49. f5 {[%clk 0:00:02]}  Nd5 {[%clk 0:01:20]} 50. fxe6 {[%clk 0:00:01]}  Be3+ {[%clk 0:01:19]} 51. Kd1 {[%clk 0:00:01]}  Bf4 {[%clk 0:01:20]} 52. Bg4 {[%clk 0:00:00]}  Ne3+ {[%clk 0:01:20]} 0-1


[Site "https://www.chess.com"]